fUSD/lending_fUSD_20250306
["ID","MTS","AMOUNT","RATE_DAILY","PERIOD"]
[355554261,1741270238104,-314.7577085,0.00011009,2]
[355554262,1741270238114,-500.0,0.00011009,2]
[355554263,1741270238123,-500.0,0.00011009,2]
[355554264,1741270238133,-365.54088629,0.00011009,2]
[355554265,1741270238142,-500.0,0.00011009,2]
[355554266,1741270238152,-500.0,0.00011009,2]
[355554267,1741270238162,-202.78083333,0.00011023,2]
[355554268,1741270238172,-202.78083333,0.00011061,2]
[355554269,1741270238182,-168.98,0.00011074,2]
[355554270,1741270238192,-202.78083333,0.00011083,2]
[355554271,1741270238201,-4424.7737,0.00011183,2]
[355554272,1741270238211,-1307.625,0.00011183,2]
[355554273,1741270238220,-888.7275,0.00011259,2]
[355554274,1741270238230,-500.0,0.00011283,2]
[355554275,1741270238241,-500.0,0.00011283,2]
[355554276,1741270238252,-500.0,0.00011283,2]
[355554277,1741270238263,-500.0,0.00011283,2]
[355554278,1741270238273,-500.0,0.00011283,2]
[355554279,1741270238282,-500.0,0.00011283,2]
[355554280,1741270238293,-500.0,0.00011283,2]
[355554281,1741270238303,-500.0,0.00011283,2]
[355554282,1741270238314,-500.0,0.00011283,2]
[355554283,1741270238323,-500.0,0.00011283,2]
[355554284,1741270238334,-500.0,0.00011283,2]
[355554285,1741270238343,-500.0,0.00011283,2]
[355554286,1741270238353,-500.0,0.00011283,2]
[355554287,1741270238363,-500.0,0.00011283,2]
[355554288,1741270238373,-500.0,0.00011283,2]
[355554289,1741270238382,-500.0,0.00011283,2]
[355554290,1741270238391,-500.0,0.00011283,2]
[355554292,1741270238400,-500.0,0.00011283,2]
[355554294,1741270238409,-500.0,0.00011283,2]
[355554296,1741270238419,-500.0,0.00011283,2]
[355554298,1741270238428,-500.0,0.00011283,2]
[355554300,1741270238437,-550.0,0.00011354,2]
[355554302,1741270238446,-151.24,0.00011393,2]
[355554304,1741270238455,-1933.0996,0.00011457,2]
[355554306,1741270238464,-2751.0,0.00011507,2]
[355554308,1741270238473,-364.5734,0.00011533,2]
[355554310,1741270238482,-405.560887,0.00011556,2]
[355554311,1741270238491,-617.829138,0.00011556,2]
[355554313,1741270238501,-423.69391072,0.00011556,2]
[355554315,1741270238510,-500.0,0.00011556,2]
[355554317,1741270238521,-544.98,0.00011556,2]
[355554318,1741270238530,-1581.67,0.00011556,2]
[355554319,1741270238538,-740.68,0.00011556,2]
[355554320,1741270238547,-775.87,0.00011556,2]
[355554321,1741270238557,-692.96,0.00011556,2]
[355554322,1741270238566,-954.15,0.00011556,2]
[355554323,1741270238576,-125.07653716,0.00011556,2]
[355554324,1741270238607,-727.53294698,0.00011556,2]
[355554325,1741270238619,-42.08051586,0.00011556,2]
[355554326,1741270238629,-1761.92,0.00011556,2]
[355554327,1741270238638,-394.87559295,0.00011556,2]
[355554328,1741270238708,-943.29440705,0.00011556,2]
[355554329,1741270238718,-1057.64759995,0.00011556,2]
[355554330,1741270238793,-408.38240005,0.00011556,2]
[355554331,1741270238803,-500.0,0.00011556,2]
[355554332,1741270238813,-640.08,0.00011556,2]
[355554333,1741270238824,-1683.03824889,0.00011556,2]
[355554334,1741270238836,-98.59175111,0.00011556,2]
[355554335,1741270238846,-500.0,0.00011556,2]
[355554336,1741270238856,-755.34,0.00011556,2]
[355554337,1741270238867,-876.74,0.00011556,2]
[355554338,1741270238876,-500.0,0.00011556,2]
[355554339,1741270238886,-1074.31,0.00011556,2]
[355554340,1741270238895,-1393.44,0.00011556,2]
[355554341,1741270238905,-2044.53,0.00011556,2]
[355554342,1741270238914,-976.41,0.00011556,2]
[355554343,1741270238924,-544.47,0.00011556,2]
[355554344,1741270238933,-970.86,0.00011556,2]
[355554345,1741270238943,-821.78,0.00011556,2]
[355554346,1741270238953,-942.31,0.00011556,2]
[355554347,1741270238962,-574.69565089,0.00011556,2]
[355554359,1741270240163,-138.50434911,0.00011556,2]
[355554360,1741270240174,-500.0,0.00011556,2]
[355554361,1741270240185,-436.64257501,0.00011556,2]
[355554362,1741270240195,-992.26,0.00011556,2]
[355554363,1741270240206,-1100.44,0.00011556,2]
[355554364,1741270240217,-500.0,0.00011556,2]
[355554365,1741270240227,-500.0,0.00011556,2]
[355554366,1741270240238,-524.3,0.00011556,2]
[355554367,1741270240249,-62.73747281,0.00011556,2]
[355554368,1741270240301,-437.26252719,0.00011556,2]
[355554369,1741270240311,-831.14,0.00011556,2]
[355554370,1741270240321,-69.96826473,0.00011556,2]
[355554371,1741270240334,-430.03173527,0.00011556,2]
[355554372,1741270240345,-500.0,0.00011556,2]
[355554373,1741270240354,-2662.82,0.00011556,2]
[355554374,1741270240365,-734.07,0.00011556,2]
[355554375,1741270240375,-500.0,0.00011556,2]
[355554376,1741270240384,-1408.07,0.00011556,2]
[355554377,1741270240394,-695.38,0.00011556,2]
[355554378,1741270240404,-500.0,0.00011556,2]
[355554379,1741270240413,-3958.21,0.00011556,2]
[355554380,1741270240422,-591.05,0.00011556,2]
[355554381,1741270240431,-500.0,0.00011556,2]
[355554382,1741270240441,-629.64,0.00011556,2]
[355554383,1741270240449,-500.0,0.00011556,2]
[355554384,1741270240458,-756.45,0.00011556,2]
[355554385,1741270240467,-500.0,0.00011556,2]
[355554386,1741270240476,-612.38,0.00011556,2]
[355554387,1741270240485,-1039.3,0.00011556,2]
[355554388,1741270240494,-711.85,0.00011556,2]
[355554389,1741270240503,-698.0,0.00011556,2]
[355554390,1741270240512,-640.15,0.00011556,2]
[355554391,1741270240522,-414.41168296,0.00011557,2]
[355554392,1741270240531,-500.0,0.00011557,2]
[355554393,1741270240539,-231.46537107,0.00011557,2]
[355554394,1741270240548,-500.0,0.00011557,2]
[355554395,1741270240557,-500.0,0.00011557,2]
[355554396,1741270240566,-500.0,0.00011557,2]
[355554397,1741270240574,-500.0,0.00011557,2]
[355554398,1741270240583,-500.0,0.00011557,2]
[355554399,1741270240593,-500.0,0.00011557,2]
[355554401,1741270240818,-500.0,0.00011557,2]
[355554402,1741270240838,-500.0,0.00011557,2]
[355554403,1741270240849,-500.0,0.00011557,2]
[355554404,1741270240859,-500.0,0.00011557,2]
[355554405,1741270240869,-500.0,0.00011557,2]
[355554406,1741270240878,-500.0,0.00011557,2]
[355554409,1741270240888,-500.0,0.00011557,2]
[355554412,1741270240898,-500.0,0.00011557,2]
[355554413,1741270240908,-500.0,0.00011557,2]
[355554414,1741270240917,-500.0,0.00011557,2]
[355554415,1741270240927,-364.66525534,0.00011557,2]
[355554416,1741270241154,-135.33474466,0.00011557,2]
[355554417,1741270241164,-1000.0,0.00011612,2]
[355554418,1741270241174,-500.0,0.0001163,2]
[355554419,1741270241183,-500.0,0.0001163,2]
[355554420,1741270241194,-500.0,0.0001163,2]
[355554421,1741270241203,-500.0,0.0001163,2]
[355554422,1741270241213,-816.17,0.0001163,2]
[355554423,1741270241223,-602.55,0.0001163,2]
[355554424,1741270241233,-670.36,0.0001163,2]
[355554425,1741270241249,-835.34,0.0001163,2]
[355554426,1741270241258,-528.26,0.0001163,2]
[355554427,1741270241270,-500.0,0.0001163,2]
[355554428,1741270241280,-2211.84,0.0001163,2]
[355554429,1741270241290,-670.47,0.0001163,2]
[355554430,1741270241299,-500.0,0.0001163,2]
[355554431,1741270241308,-630.72,0.0001163,2]
[355554432,1741270241318,-500.0,0.0001163,2]
[355554433,1741270241329,-588.82,0.0001163,2]
[355554434,1741270241339,-2182.11,0.0001163,2]
[355554435,1741270241349,-500.0,0.0001163,2]
[355554436,1741270241359,-624.5,0.0001163,2]
[355554437,1741270241369,-500.0,0.0001163,2]
[355554438,1741270241379,-500.0,0.0001163,2]
[355554439,1741270241388,-1149.3,0.0001163,2]
[355554440,1741270241398,-500.0,0.00011631,2]
[355554441,1741270241409,-500.0,0.00011631,2]
[355554442,1741270241419,-509.9125138,0.00011631,2]
[355554443,1741270241428,-500.0,0.00011631,2]
[355554444,1741270241437,-500.0,0.00011631,2]
[355554445,1741270241447,-500.0,0.00011631,2]
[355554446,1741270241456,-108.22221882,0.00011631,2]
[355554447,1741270241659,-500.0,0.00011556,2]
[355554448,1741270241669,-391.77778118,0.00011631,2]
[355554449,1741270241679,-500.0,0.00011631,2]
[355554450,1741270241689,-500.0,0.00011631,2]
[355554451,1741270241698,-361.07708702,0.00011631,2]
[355554452,1741270241816,-138.92291298,0.00011631,2]
[355554453,1741270241826,-500.0,0.00011631,2]
[355554454,1741270241836,-500.0,0.00011631,2]
[355554455,1741270241845,-500.0,0.00011631,2]
[355554456,1741270241855,-500.0,0.00011631,2]
[355554457,1741270241864,-567.9,0.00011631,2]
[355554458,1741270241874,-500.0,0.00011631,2]
[355554459,1741270241883,-500.0,0.00011631,2]
[355554460,1741270241892,-500.0,0.00011631,2]
[355554461,1741270241902,-500.0,0.00011631,2]
[355554462,1741270241911,-527.54,0.00011631,2]
[355554463,1741270241921,-500.0,0.00011631,2]
[355554464,1741270241930,-500.0,0.00011631,2]
[355554465,1741270241940,-538.71,0.00011631,2]
[355554466,1741270241950,-500.0,0.00011631,2]
[355554467,1741270241959,-500.0,0.00011631,2]
[355554468,1741270241968,-500.0,0.00011631,2]
[355554469,1741270241978,-500.0,0.00011631,2]
[355554470,1741270241987,-313.17740361,0.00011631,2]
[355554484,1741270243230,-186.82259639,0.00011631,2]
[355554485,1741270243242,-298.62740354,0.00011631,2]
[355554486,1741270243267,-201.37259646,0.00011631,2]
[355554487,1741270243278,-500.0,0.00011631,2]
[355554488,1741270243288,-500.0,0.00011631,2]
[355554489,1741270243297,-500.0,0.00011631,2]
[355554490,1741270243307,-500.0,0.00011631,2]
[355554491,1741270243317,-500.0,0.00011631,2]
[355554492,1741270243328,-500.0,0.00011631,2]
[355554493,1741270243338,-500.0,0.00011631,2]
[355554494,1741270243348,-500.0,0.00011631,2]
[355554495,1741270243357,-500.0,0.00011631,2]
[355554496,1741270243367,-500.0,0.00011631,2]
[355554497,1741270243377,-197.91498332,0.00011631,2]
[355554498,1741270243387,-500.0,0.00011631,2]
[355554499,1741270243396,-500.0,0.00011631,2]
[355554500,1741270243406,-500.0,0.00011631,2]
[355554501,1741270243416,-500.0,0.00011631,2]
[355554502,1741270243425,-515.79473093,0.00011631,2]
[355554503,1741270243435,-500.0,0.00011631,2]
[355554504,1741270243445,-418.42977283,0.00011631,2]
[355554538,1741270246230,-957.27,0.00011556,2]
[355554539,1741270246240,-522.27,0.0001163,2]
[355554540,1741270246251,-81.57022717,0.00011631,2]
[355554541,1741270246261,-500.0,0.00011631,2]
[355554542,1741270246271,-500.0,0.00011631,2]
[355554543,1741270246283,-500.0,0.00011631,2]
[355554544,1741270246292,-591.76,0.00011631,2]
[355554545,1741270246303,-500.0,0.00011631,2]
[355554546,1741270246313,-184.82793758,0.00011631,2]
[355554547,1741270246322,-500.0,0.00011631,2]
[355554548,1741270246334,-500.0,0.00011631,2]
[355554549,1741270246344,-500.0,0.00011631,2]
[355554550,1741270246354,-500.0,0.00011631,2]
[355554551,1741270246363,-500.0,0.00011631,2]
[355554552,1741270246372,-500.0,0.00011631,2]
[355554553,1741270246382,-500.0,0.00011631,2]
[355554554,1741270246391,-151.38337595,0.00011631,2]
[355554555,1741270246401,-500.0,0.00011631,2]
[355554556,1741270246411,-500.0,0.00011631,2]
[355554557,1741270246421,-500.0,0.00011631,2]
[355554558,1741270246431,-500.0,0.00011631,2]
[355554559,1741270246441,-834.77,0.00011632,2]
[355554560,1741270246451,-1243.09,0.00011632,2]
[355554561,1741270246461,-7105.97,0.00011632,2]
[355554562,1741270246471,-1961.82165923,0.00011632,2]
[355554563,1741270246490,-1388.03834077,0.00011632,2]
[355554564,1741270246499,-271.69381879,0.00011632,2]
[355554565,1741270246511,-267.29618121,0.00011632,2]
[355554566,1741270246520,-883.11,0.00011632,2]
[355554567,1741270246530,-1105.89381871,0.00011632,2]
[355554568,1741270246541,-3601.44,0.00011632,2]
[355554569,1741270246559,-411.35172087,0.00011632,2]
[355554570,1741270246571,-311.79446042,0.00011632,2]
[355554571,1741270246581,-500.0,0.00011632,2]
[355554572,1741270246590,-658.77,0.00011632,2]
[355554573,1741270246599,-1436.59,0.00011632,2]
[355554574,1741270246609,-253.10354771,0.00011632,2]
[355554575,1741270246620,-1493.64,0.00011632,2]
[355554576,1741270246629,-886.64,0.00011632,2]
[355554577,1741270246639,-748.74,0.00011632,2]
[355554578,1741270246648,-500.0,0.00011632,2]
[355554579,1741270246658,-1183.25,0.00011632,2]
[355554580,1741270246667,-2978.54,0.00011632,2]
[355554581,1741270246677,-393.15,0.000118,2]
[355554582,1741270246687,-405.560887,0.0001183,2]
[355554583,1741270246696,-617.829138,0.0001183,2]
[355554584,1741270246706,-500.0,0.0001183,2]
[355554585,1741270246715,-532.04,0.0001183,2]
[355554586,1741270246725,-1581.67,0.0001183,2]
[355554587,1741270246734,-740.68,0.0001183,2]
[355554588,1741270246744,-775.87,0.0001183,2]
[355554590,1741270246753,-500.0,0.0001183,2]
[355554591,1741270246763,-692.96,0.0001183,2]
[355554592,1741270246772,-229.41950333,0.0001183,2]
[355554593,1741270310179,860.36,9.102e-05,2]
[355554594,1741270510812,155.0,9.102e-05,3]
[355554620,1741270811721,155.0,9.102e-05,3]
[355555937,1741271069031,449.5130801,0.0002,120]
[355556308,1741271109157,155.0,9.102e-05,3]
[355556341,1741271415280,156.0,9.102e-05,3]
[355556350,1741271432527,-209.01315869,0.00010662,2]
[355556351,1741271432537,-318.45310178,0.00010662,2]
[355556352,1741271432547,-150.0,0.00010736,2]
[355556353,1741271432558,-2800.39001932,0.00010736,2]
[355556354,1741271432568,-500.0,0.00010736,2]
[355556355,1741271432578,-500.0,0.00010736,2]
[355556356,1741271432588,-500.0,0.00010736,2]
[355556357,1741271432598,-500.0,0.00010736,2]
[355556358,1741271432608,-500.0,0.00010736,2]
[355556359,1741271432617,-500.0,0.00010736,2]
[355556360,1741271432627,-163.08949203,0.00010736,2]
[355556361,1741271432637,-493.98,0.00010737,2]
[355556362,1741271432648,-188858.13684991,0.00010737,2]
[355556363,1741271432758,-289.89542101,0.00010737,2]
[355556364,1741271432775,-384.20133856,0.00010737,2]
[355556365,1741271432797,-11889.0902108,0.00010737,2]
[355556366,1741271432844,-129500.00438317,0.00010737,2]
[355556400,1741271438161,-18026.19567685,0.00010737,2]
[355556401,1741271438333,-7191.8799952,0.00010737,2]
[355556402,1741271438355,-842.64919,0.00010737,2]
[355556403,1741271438456,-11258.75120002,0.00010737,2]
[355556409,1741271440599,-1173.70891906,0.00010737,2]
[355556410,1741271440797,-65612.33705047,0.00010737,2]
[355556446,1741271443330,-901.84078003,0.00010737,2]
[355556450,1741271443488,-1243.33479485,0.00010737,2]
[355556451,1741271443537,-18449.0,0.00010737,2]
[355556453,1741271446484,-530.04906336,0.00010638,2]
[355556454,1741271446498,-469.95093664,0.00010638,2]
[355556455,1741271446509,-10163.42526236,0.00010737,2]
[355556456,1741271446521,-23500.0,0.00010737,2]
[355556457,1741271446535,-291.64417923,0.00010737,2]
[355556503,1741271768286,911.12,0.00010191,2]
[355556504,1741271855493,860.5,8.219e-05,2]
[355556505,1741271888746,223.82,0.00010095,2]
[355556506,1741271960009,2000.0,0.00010095,2]
[355556507,1741271993206,2000.0,0.00010095,2]
[355556508,1741272204357,-860.5,0.00010483,2]
[355556509,1741272204381,-1472.47539858,0.0001053,2]
[355556510,1741272204405,-4704.0,0.00010562,2]
[355556511,1741272204430,-1051.12389,0.0001063,2]
[355556512,1741272204453,-1739.0105,0.00010634,2]
[355556513,1741272204493,-300.0,0.00010637,2]
[355556514,1741272204519,-1000.0,0.00010638,2]
[355556515,1741272204544,-350.45945234,0.00010662,2]
[355556516,1741272204567,-435.74267748,0.00010662,2]
[355556517,1741272204591,-150.0,0.00010699,2]
[355556518,1741272204625,-25150.0,0.000107,2]
[355556519,1741272204649,-200.0,0.000107,2]
[355556520,1741272204672,-200.0,0.000107,2]
[355556521,1741272204694,-200.0,0.000107,2]
[355556522,1741272204716,-200.0,0.000107,2]
[355556523,1741272204739,-216670.65483385,0.00010734,2]
[355556524,1741272204763,-174.84631717,0.00010736,2]
[355556525,1741272204788,-299.99,0.00010737,2]
[355556526,1741272204809,-923.78,0.00010737,2]
[355556527,1741272204830,-826.61,0.00010737,2]
[355556528,1741272204856,-999.99,0.00010737,2]
[355556529,1741272204879,-499.99,0.00010737,2]
[355556530,1741272204902,-9999.99,0.00010737,2]
[355556531,1741272204930,-156.0,0.00010737,3]
[355556532,1741272204952,-1310.96,0.00010737,2]
[355556533,1741272206176,786.57441754,0.00010662,2]
[355556534,1741272224211,18995.24,0.00010453,2]
[355556535,1741272253351,-3913712.96251304,0.00010737,2]
[355556536,1741272420499,1000.0,0.00010167,2]
[355556537,1741272424228,500.0,0.000201,120]
[355556538,1741272426191,500.0,0.000201,120]
[355556539,1741272570245,162.33,0.00010015,2]
[355556541,1741272631591,-161.05,0.00010437,2]
[355556542,1741272631602,-237.00286501,0.0001063,2]
[355556543,1741272631712,-400.0,0.0001063,2]
[355556544,1741272631727,-4586.06303229,0.0001063,2]
[355556545,1741272631753,-3033.18011712,0.0001063,2]
[355556546,1741272631763,-3210.87642,0.0001063,2]
[355556547,1741272631773,-300.0,0.00010633,2]
[355556548,1741272631783,-3033.06511297,0.00010634,2]
[355556549,1741272631794,-268.69475,0.00010634,2]
[355556550,1741272631806,-2465.34553703,0.00010634,2]
[355556551,1741272631816,-150.0,0.00010637,2]
[355556552,1741272631825,-2397.15446297,0.00010638,2]
[355556553,1741272631837,-253.83214093,0.00010638,2]
[355556554,1741272631860,-2349.0133961,0.00010638,2]
[355556555,1741272631870,-5954.25181769,0.00010638,2]
[355556556,1741272631907,-682.31368231,0.00010638,2]
[355556557,1741272631917,-642.1236,0.00010638,2]
[355556558,1741272631926,-388.3865,0.00010638,2]
[355556559,1741272631935,-872.28771434,0.00010638,2]
[355556560,1741272631944,-316.38017734,0.00010638,2]
[355556561,1741272631953,-289.38484104,0.00010638,2]
[355556562,1741272631963,-176.17587524,0.00010673,2]
[355556563,1741272631974,-463.92627203,0.00010736,2]
[355556564,1741272631983,-500.0,0.00010736,2]
[355556565,1741272631993,-222.35217072,0.00010736,2]
[355556566,1741272632003,-500.0,0.00010736,2]
[355556567,1741272632012,-285082.4114628,0.00010737,2]
[355556568,1741272632022,-156.0,0.00010737,3]
[355556569,1741272632032,-103641.87592605,0.00010737,2]
[355556570,1741272632043,-42987.02257017,0.00010737,2]
[355556571,1741272632057,-335.73,0.00010737,2]
[355556572,1741272632068,-297.04785907,0.00010737,2]
[355556574,1741272632094,-1517.7796849,0.00010737,2]
[355556577,1741272632108,-1076.27963345,0.00010737,2]
[355556579,1741272632119,-231442.38499789,0.00010737,2]
[355556821,1741272637452,-416.94616708,0.00010737,2]
[355556822,1741272637464,-18666.6981831,0.00010737,2]
[355556823,1741272637481,-17984.4,0.00010737,2]
[355556824,1741272637517,-1392.79105376,0.00010737,2]
[355556825,1741272637648,-45200.98879778,0.00010737,2]
[355556826,1741272637661,-12073.74617446,0.00010737,2]
[355556827,1741272637673,-3379.26028201,0.00010737,2]
[355556828,1741272637702,-1713.56068351,0.00010737,2]
[355556829,1741272637715,-463.34307406,0.00010737,2]
[355556855,1741272639790,-1824.99637321,0.00010737,2]
[355556856,1741272639803,-3077236.49351886,0.00010737,2]
[355556857,1741272639869,-1354.11365598,0.00010737,2]
[355556864,1741272640486,-3504.77987932,0.00010737,2]
[355556865,1741272640520,-359.576,0.00010737,2]
[355556878,1741272643081,-45260.38120279,0.00010737,2]
[355556879,1741272643094,-505.36072297,0.00010737,2]
[355556880,1741272643244,-1113.16750003,0.00010737,2]
[355556892,1741272645620,-580.55672601,0.00010737,2]
[355556893,1741272645632,-1093.79646944,0.00010737,2]
[355556894,1741272645643,-691.29393694,0.00010737,2]
[355556895,1741272645800,-840.80000068,0.00010737,2]
[355556896,1741272645812,-26900.7,0.00010737,2]
[355556902,1741272816312,580.00801467,0.000201,120]
[355556904,1741272904530,566.55,0.00010131,2]
[355556905,1741272918070,813.3,8.219e-05,2]
[355556906,1741272953898,529.81,0.00010029,2]
[355556907,1741273006381,151.9,0.00010029,2]
[355556908,1741273006588,151.9,0.00010144,2]
[355556909,1741273055263,675.92,9.921e-05,2]
[355556910,1741273157942,200.0,0.0001,2]
[355556911,1741273253775,171.31,0.00010215,2]
[355556912,1741273477024,-150.0,0.00010958,7]
[355556913,1741273478617,-150.0,0.00010958,7]
[355556914,1741273478964,1198.89,9.868e-05,2]
[355556915,1741273479520,-150.0,0.00010958,7]
[355556916,1741273480875,-50.0,0.00010958,7]
[355556917,1741273507964,589.79,9.854e-05,2]
[355556918,1741273595542,4100.0,0.000201,120]
[355556919,1741273696944,-151.9,0.00010258,2]
[355556920,1741273696993,-284.548751,0.00010258,2]
[355556921,1741273710985,1000.0,9.933e-05,2]
[355556922,1741273791447,2890.26,0.000139,31]
[355556923,1741273791502,2890.26,0.000139,31]
[355556924,1741273791565,2890.26,0.000139,31]
[355556925,1741273791618,2890.26,0.000139,31]
[355556926,1741273791678,2890.26,0.000139,31]
[355556927,1741273791742,2890.26,0.000139,31]
[355556928,1741273791813,2890.26,0.000139,31]
[355556929,1741273791864,2890.26,0.000139,31]
[355556930,1741273791922,2890.26,0.000139,31]
[355556931,1741273791980,2890.26,0.000139,31]
[355556932,1741273792048,2890.26,0.000139,31]
[355556933,1741273792100,2890.26,0.000139,31]
[355556934,1741273792170,2890.26,0.000139,31]
[355556935,1741273792224,2890.26,0.000139,31]
[355556936,1741273792276,2890.26,0.000139,31]
[355556937,1741273792357,2890.26,0.000139,31]
[355556946,1741273831760,-152.51079432,0.00010258,2]
[355556947,1741273831770,-150.0,0.00010273,2]
[355556948,1741273831780,-550.0,0.00010273,2]
[355556949,1741273831789,-151.9,0.00010373,2]
[355556950,1741273831799,-813.3,0.00010483,2]
[355556951,1741273831809,-151.9,0.00010488,2]
[355556952,1741273831819,-300.0,0.00010537,2]
[355556953,1741273831829,-16776.55860948,0.00010538,2]
[355556954,1741273831844,-820.6970865,0.00010538,2]
[355556955,1741273831860,-500.56005864,0.00010538,2]
[355556956,1741273831893,-2932.22354538,0.00010538,2]
[355556957,1741273831903,-380.0,0.00010548,2]
[355556958,1741273831913,-151.9,0.00010602,2]
[355556959,1741273831923,-719.39001422,0.00010627,2]
[355556960,1741273831935,-804.13998578,0.00010627,2]
[355556961,1741273831949,-150.0,0.00010627,2]
[355556962,1741273831959,-8909.72050117,0.00010627,2]
[355556963,1741273832095,-6527.30949883,0.00010627,2]
[355556964,1741273832105,-150.99,0.00010627,2]
[355556965,1741273832115,-390.53054008,0.00010627,2]
[355556966,1741273832127,-9609.45945992,0.00010627,2]
[355556967,1741273832138,-694.59683131,0.00010628,2]
[355556968,1741273832149,-250.54459124,0.00010628,2]
[355556969,1741273832174,-271.2,0.00010628,2]
[355556970,1741273832186,-2000.0,0.00010628,2]
[355556971,1741273832206,-4479.72144999,0.00010628,2]
[355557240,1741273837716,-27618.97033673,0.00010628,2]
[355557241,1741273837729,-1453.25,0.00010628,2]
[355557242,1741273837739,-9999.99,0.00010628,2]
[355557243,1741273837749,-1652.16183,0.0001063,2]
[355557244,1741273837759,-2764.33,0.00010637,2]
[355557245,1741273837769,-166.032,0.00010637,2]
[355557246,1741273837778,-6383.64084269,0.00010638,2]
[355557247,1741273837790,-425.155,0.00010638,2]
[355557248,1741273837802,-437.55175731,0.00010638,2]
[355557249,1741273837811,-231.5438,0.00010638,2]
[355557250,1741273837821,-507.3244,0.00010638,2]
[355557251,1741273837831,-91.33085269,0.00010638,2]
[355557252,1741273837892,-10516.73904731,0.00010638,2]
[355557253,1741273837902,-1253.6204,0.00010638,2]
[355557254,1741273837912,-5809.0492,0.00010638,2]
[355557255,1741273837922,-484.1275,0.00010638,2]
[355557256,1741273837933,-11556.7665,0.00010638,2]
[355557257,1741273837942,-884.7394,0.00010638,2]
[355557258,1741273837954,-1000.0,0.00010638,2]
[355557259,1741273837964,-2500.0,0.00010638,2]
[355557260,1741273837976,-172.94743326,0.00010638,2]
[355557261,1741273837986,-405.0,0.00010658,2]
[355557262,1741273837996,-167.82363172,0.00010673,2]
[355557263,1741273838006,-169.0120017,0.00010673,2]
[355557264,1741273838016,-247.66677733,0.00010673,2]
[355557265,1741273838026,-151.9,0.00010717,2]
[355557266,1741273838036,-179.64460434,0.00010728,2]
[355557267,1741273838046,-2720.46809699,0.0001073,2]
[355557268,1741273838055,-500.0,0.00010736,2]
[355557269,1741273838070,-640.0,0.00010736,2]
[355557270,1741273838080,-500.0,0.00010736,2]
[355557271,1741273838090,-1387.72,0.00010737,2]
[355557273,1741273838100,-66682.93785795,0.00010737,2]
[355557276,1741273838112,-50168.87738126,0.00010737,2]
[355557288,1741273840056,-106.05161729,0.00010737,2]
[355557289,1741273840157,-6956.52721151,0.00010737,2]
[355557290,1741273840169,-4753.71037535,0.00010737,2]
[355557291,1741273840182,-798.49173892,0.00010737,2]
[355557292,1741273840194,-251.14868378,0.00010737,2]
[355557293,1741273840208,-338.42804457,0.00010737,2]
[355557294,1741273840220,-283.02,0.00010737,2]
[355557296,1741273840298,-2142.45690087,0.00010737,2]
[355557298,1741273840310,-596.84915223,0.00010737,2]
[355557300,1741273840322,-2146.42413996,0.00010737,2]
[355557327,1741273842738,-4737.64659088,0.00010737,2]
[355557328,1741273842750,-45290.90711403,0.00010737,2]
[355557329,1741273842810,-33974.55999819,0.00010737,2]
[355557336,1741273843321,-4000.0,0.00010737,2]
[355557338,1741273843334,-208759.30265647,0.00010737,2]
[355557370,1741273845798,-22448.41063535,0.00010737,2]
[355557378,1741273845870,-712.24409826,0.00010737,2]
[355557380,1741273845881,-566.96064999,0.00010737,2]